bitfinex/quotes_SOLUSD_20240626
["timestamp","ask_amount","ask_price","bid_price","bid_amount"]
[1719393364892,27.3061,136.88,136.81,15.2141]
[1719393365094,27.3061,136.88,136.82,8.44501511]
[1719393365303,27.3061,136.88,136.83,7.52775]
[1719393365693,7.3063,136.87,136.82,7.3087]
[1719393366110,27.3058,136.88,136.83,6.84979725]
[1719393366509,27.3058,136.88,136.82,7.3087]
[1719393366807,27.3058,136.88,136.83,6.94499999]
[1719393367621,20.0,136.88,136.83,25.21529999]
[1719393368331,20.0,136.88,136.83,25.5785]
[1719393368496,27.3057,136.88,136.83,25.5785]
[1719393369115,27.3057,136.88,136.83,18.2703]
[1719393369324,27.3057,136.88,136.82,7.3087]
[1719393369325,7.3071,136.86,136.81,15.2141]
[1719393369500,7.3067,136.86,136.81,15.2141]
[1719393369705,7.3073,136.85,136.81,15.2141]
[1719393370108,7.3068,136.86,136.81,20.58194411]
[1719393370508,7.3088,136.82,136.79,6.4932]
[1719393370920,7.3096,136.81,136.78,15.7419]
[1719393371209,7.309,136.82,136.78,15.7419]
[1719393371626,7.3083,136.83,136.78,23.0528]
[1719393371927,20.0,136.82,136.78,15.7419]
[1719393372434,20.0,136.82,136.78,23.0528]
[1719393373804,6.601,136.88,136.79,4.44127769]
[1719393374120,7.3063,136.87,136.8,18.4442]
[1719393374316,20.0,136.86,136.8,18.4442]
[1719393374512,27.3067,136.86,136.81,7.3092]
[1719393374714,27.3067,136.86,136.8,25.754]
[1719393376631,20.0,136.86,136.81,7.3094]
[1719393378827,27.3068,136.86,136.81,7.3094]
[1719393379143,27.3068,136.86,136.8,25.7539]
[1719393379636,20.0,136.86,136.79,7.3103]
[1719393379848,20.0,136.88,136.8,4.11558118]
[1719393380145,0.17,136.87,136.8,4.11558118]
[1719393380323,7.3073,136.85,136.8,11.42548118]
[1719393380516,7.3078,136.84,136.79,12.885547]
[1719393380728,0.17,136.87,136.79,12.885547]
[1719393380729,7.3074,136.85,136.8,6.939375]
[1719393381932,18.4361,136.87,136.78,15.7419]
[1719393382142,18.4361,136.87,136.78,23.0528]
[1719393382143,7.3085,136.83,136.78,23.0528]
[1719393382342,7.3085,136.83,136.78,15.7419]
[1719393382725,0.17,136.86,136.78,15.7419]
[1719393382726,7.3089,136.82,136.78,15.7419]
[1719393383754,7.3094,136.81,136.78,15.7419]
[1719393384643,58.1915,136.86,136.76,15.671]
[1719393384943,7.3108,136.79,136.76,15.671]
[1719393385943,7.31,136.8,136.76,15.671]
[1719393386125,20.0,136.79,136.76,15.671]
[1719393386547,20.0,136.79,136.76,22.9828]
[1719393386742,20.0,136.8,136.76,22.9828]
[1719393386940,27.3099,136.8,136.76,15.671]
[1719393387246,7.3107,136.79,136.76,15.671]
[1719393389634,20.0,136.8,136.72,16.2091]
[1719393389839,7.3143,136.72,136.69,22.4562]
[1719393390055,7.60369577,136.78,136.66,23.3343]
[1719393390260,7.3143,136.72,136.66,23.3343]
[1719393390465,7.3143,136.72,136.67,7.3168]
[1719393390827,7.3138,136.73,136.67,7.3168]
[1719393391132,20.0,136.72,136.67,7.3168]
[1719393392227,7.3142,136.72,136.67,7.3168]
[1719393393152,7.3142,136.72,136.66,31.95515641]
[1719393393351,20.0,136.75,136.66,23.3343]
[1719393393352,7.3148,136.71,136.66,23.3343]
[1719393393544,15.5297,136.74,136.66,16.0171]
[1719393393856,18.2874,136.71,136.6,16.0764]
[1719393394030,18.2874,136.71,136.6,23.3968]
[1719393394031,7.3175,136.66,136.6,23.3968]
[1719393394230,7.3168,136.68,136.61,7.32]
[1719393394432,20.0,136.67,136.61,7.32]
[1719393394745,20.0,136.67,136.62,7.3195]
[1719393395425,20.0,136.7,136.62,7.3195]
[1719393396036,7.3164,136.68,136.62,7.3195]
[1719393396239,20.0,136.7,136.61,18.2992]
[1719393396240,20.0,136.67,136.63,7.319]
[1719393396858,20.0,136.68,136.63,7.319]
[1719393397242,7.3156,136.7,136.63,18.297]
[1719393397441,298.8313,136.74,136.64,7.3183]
[1719393397442,27.3158,136.69,136.64,7.3183]
[1719393397634,20.0,136.69,136.64,7.3183]
[1719393398138,7.3166,136.68,136.63,18.297]
[1719393398348,7.3166,136.68,136.62,7.489]
[1719393398349,7.317,136.67,136.62,7.319]
[1719393399168,7.317,136.67,136.61,7.32]
[1719393399457,7.317,136.67,136.6,34.3771]
[1719393399458,18.289,136.7,136.6,34.3771]
[1719393399639,7.3184,136.65,136.6,34.3771]
[1719393400040,7.3186,136.64,136.6,16.0764]
[1719393402171,7.3181,136.65,136.6,16.0764]
[1719393402546,7.3181,136.65,136.6,23.397]
[1719393403068,7.3181,136.65,136.6,16.0764]
[1719393403565,7.3186,136.64,136.6,16.0764]
[1719393404067,0.17,136.66,136.59,6.5529]
[1719393404068,7.3191,136.63,136.59,6.5529]
[1719393404250,27.3198,136.62,136.58,0.8495621]
[1719393404757,20.0,136.62,136.58,0.8495621]
[1719393406242,27.3196,136.62,136.58,0.8495621]
[1719393406740,20.0,136.62,136.58,8.1710621]
[1719393407059,7.3183,136.65,136.6,7.3203]
[1719393407254,20.0,136.64,136.59,33.06077889]
[1719393407649,20.0,136.64,136.59,25.6232]
[1719393409045,20.0,136.64,136.6,7.3203]
[1719393409446,20.0,136.65,136.6,7.3203]
[1719393409875,27.3182,136.65,136.59,25.6232]
[1719393410053,27.3182,136.65,136.6,7.3206]
[1719393411567,7.3186,136.64,136.59,18.3022]
[1719393411873,20.0,136.65,136.59,18.3022]
[1719393412065,20.17,136.66,136.59,18.3022]
[1719393412266,27.77630876,136.66,136.59,18.3022]
[1719393412472,7.3183,136.65,136.6,7.5375]
[1719393412665,20.0,136.64,136.6,14.8581]
[1719393413555,20.0,136.64,136.6,7.3206]
[1719393415349,7.6066105,136.69,136.61,25.6198]
[1719393415350,7.3176,136.66,136.61,25.6198]
[1719393415683,7.3181,136.65,136.61,18.2999]
[1719393415857,7.3176,136.66,136.61,25.6198]
[1719393416052,7.3176,136.66,136.61,18.2999]
[1719393416377,41.06728555,136.7,136.6,7.3204]
[1719393416378,7.3181,136.65,136.6,7.3204]
[1719393416749,7.3185,136.64,136.59,13.74219724]
[1719393416972,7.318,136.65,136.6,7.3206]
[1719393417351,7.3174,136.66,136.61,7.32]
[1719393417754,7.318,136.65,136.6,25.6218]
[1719393418410,7.3175,136.66,136.6,25.6218]
[1719393418776,7.3175,136.66,136.61,7.32]
[1719393419090,7.60998555,136.7,136.62,19.0927477]
[1719393419377,20.0,136.69,136.62,19.2627477]
[1719393419580,20.0,136.69,136.63,6.25930982]
[1719393419767,7.3148,136.71,136.66,7.3169]
[1719393419971,20.0,136.7,136.66,7.3169]
[1719393420281,20.0,136.7,136.65,7.3177]
[1719393420282,27.3154,136.7,136.65,7.3177]
[1719393420455,20.0,136.7,136.64,18.296]
[1719393420660,20.0,136.73,136.64,18.296]
[1719393421369,7.3158,136.69,136.64,25.6143]
[1719393421865,7.3154,136.7,136.65,16.17766849]
[1719393422048,7.3154,136.7,136.65,7.3178]
[1719393422260,18.2864,136.72,136.62,15.2741]
[1719393422465,7.3166,136.68,136.62,24.8166451]
[1719393422675,7.3166,136.68,136.62,30.359625]
[1719393423070,7.317,136.67,136.62,22.4235]
[1719393423476,20.34,136.71,136.63,7.3186]
[1719393423668,20.34,136.71,136.64,0.17]
[1719393423669,20.0,136.71,136.64,0.17]
[1719393423978,20.0,136.73,136.67,6.2708]
[1719393424194,20.0,136.73,136.65,18.294]
[1719393424359,20.0,136.73,136.63,6.3384]
[1719393424560,20.0,136.73,136.63,13.6573]
[1719393424980,0.34,136.72,136.63,6.3384]
[1719393426363,18.2871,136.71,136.62,15.1041]
[1719393426569,20.34,136.7,136.62,15.1041]
[1719393426777,7.3175,136.66,136.62,15.1041]
[1719393427402,7.3175,136.66,136.61,25.62]
[1719393427571,27.3181,136.65,136.6,13.9289]
[1719393427971,20.0,136.65,136.6,13.9289]
[1719393428400,20.0,136.65,136.61,7.32]
[1719393428704,27.3181,136.65,136.6,24.9098]
[1719393429091,27.3181,136.65,136.6,32.2301]
[1719393429291,20.0,136.65,136.6,32.2301]
[1719393429687,20.0,136.68,136.6,32.2301]
[1719393429893,0.17,136.67,136.6,32.2301]
[1719393431304,16.5671,136.67,136.58,17.2074621]
[1719393431499,20.17,136.66,136.58,17.2074621]
[1719393431679,0.17,136.65,136.58,17.2074621]
[1719393431881,0.17,136.65,136.58,24.5289621]
[1719393432094,0.17,136.65,136.58,0.8495621]
[1719393434324,7.3199,136.62,136.58,0.8495621]
[1719393434682,7.3201,136.61,136.58,0.8495621]
[1719393434999,27.3208,136.6,136.58,0.8495621]
[1719393435505,20.0,136.6,136.58,0.8495621]
[1719393438110,7.3211,136.59,136.58,0.8495621]
[1719393438414,27.3211,136.59,136.58,0.8495621]
[1719393442898,7.3211,136.59,136.58,0.8495621]
[1719393444820,7.3243,136.53,136.52,6.6192]
[1719393444991,7.3243,136.53,136.49,108.692439]
[1719393445288,7.3258,136.51,136.49,108.692439]
[1719393445488,7.3251,136.52,136.49,108.692439]
[1719393445691,7.3245,136.53,136.49,108.692439]
[1719393446112,7.3239,136.54,136.49,116.018839]
[1719393446288,7.3239,136.54,136.49,108.692439]
[1719393446689,7.324,136.54,136.49,116.018539]
[1719393446907,7.3234,136.55,136.5,7.3257]
[1719393447104,20.0,136.54,136.5,14.49549449]
[1719393447906,7.3229,136.56,136.51,7.325]
[1719393448091,7.3229,136.56,136.5,25.6397]
[1719393448447,7.3234,136.55,136.5,25.6397]
[1719393448791,7.3229,136.56,136.5,25.6397]
[1719393450913,7.3234,136.55,136.5,25.6397]
[1719393451817,7.3227,136.57,136.51,7.3253]
[1719393452002,20.0,136.56,136.51,7.3253]
[1719393452318,27.3231,136.56,136.51,7.3253]
[1719393452915,7.3239,136.54,136.5,18.3139]
[1719393453216,7.3239,136.54,136.49,116.018839]
[1719393453720,7.3234,136.55,136.5,7.11429363]
[1719393453919,7.3234,136.55,136.5,14.44029363]
[1719393454224,20.0,136.56,136.5,14.44029363]
[1719393454421,20.0,136.58,136.5,7.326]
[1719393454612,20.0,136.58,136.49,127.008439]
[1719393454613,7.3228,136.56,136.51,7.3253]
[1719393454811,7.3233,136.55,136.5,7.3259]
[1719393455011,7.3228,136.56,136.51,14.78904071]
[1719393455325,7.3224,136.57,136.52,14.787994]
[1719393456311,27.3219,136.58,136.53,15.9254]
[1719393456497,7.3211,136.6,136.53,34.2358]
[1719393456697,25.91355872,136.62,136.55,6.1634]
[1719393456903,20.0,136.61,136.55,6.1634]
[1719393457110,7.3223,136.57,136.55,6.1634]
[1719393457315,7.3218,136.58,136.55,6.1634]
[1719393457516,7.3225,136.57,136.55,6.1634]
[1719393458324,7.3225,136.57,136.53,15.9254]
[1719393458825,7.3219,136.58,136.53,23.2496]
[1719393459028,20.0,136.61,136.53,23.2496]
[1719393459029,7.3222,136.57,136.53,15.9254]
[1719393459433,7.3229,136.56,136.53,15.9254]
[1719393459611,7.3233,136.55,136.53,15.9254]
[1719393459801,7.3233,136.55,136.52,6.6418]
[1719393460832,18.3049,136.58,136.5,15.3991]
[1719393461133,20.34,136.57,136.5,15.3991]
[1719393463137,20.34,136.57,136.5,22.7248]
[1719393463302,20.34,136.57,136.5,33.1410514]
[1719393463506,20.34,136.57,136.5,15.3991]
[1719393464911,7.3236,136.55,136.5,15.3991]
[1719393465107,7.324,136.54,136.5,15.3991]
[1719393465311,20.34,136.57,136.5,15.3991]
[1719393465628,7.3247,136.53,136.5,15.3991]
[1719393466421,7.3239,136.54,136.5,15.3991]
[1719393466610,20.0,136.53,136.5,15.3991]
[1719393466810,20.0,136.53,136.49,102.362739]
[1719393467250,7.3252,136.52,136.49,102.362739]
[1719393467460,27.3233,136.55,136.5,30.78962652]
[1719393467628,27.3234,136.55,136.5,28.02187176]
[1719393467961,27.3234,136.55,136.5,22.7589]
[1719393468159,7.3226,136.57,136.51,18.3132]
[1719393468366,7.3221,136.58,136.53,13.9534]
[1719393468733,27.3222,136.57,136.53,6.6291]
[1719393470983,7.3229,136.56,136.53,6.6291]
[1719393471163,20.0,136.57,136.53,6.6291]
[1719393471461,0.17,136.58,136.53,6.6291]
[1719393471758,0.17,136.58,136.5,40.04259977]
[1719393471932,18.4745,136.58,136.5,15.4331]
[1719393472131,20.0,136.57,136.5,15.4331]
[1719393472433,7.3234,136.55,136.5,15.4331]
[1719393472739,20.0,136.54,136.5,15.4331]
[1719393473470,20.0,136.57,136.5,15.4331]
[1719393473644,0.17,136.56,136.5,15.4331]
[1719393473846,18.6471,136.56,136.5,15.4331]
[1719393474053,20.0,136.55,136.5,15.4331]
[1719393474433,7.325,136.52,136.5,15.4331]
[1719393474758,7.3245,136.53,136.5,15.4331]
[1719393474963,20.0,136.52,136.5,15.4331]
[1719393475342,7.3254,136.51,136.5,15.4331]
[1719393475765,27.3251,136.52,136.5,15.4331]
[1719393476472,7.3256,136.51,136.49,102.362739]
[1719393476963,7.326,136.5,136.49,102.362739]
[1719393477146,27.326,136.5,136.49,102.362739]
[1719393478366,20.0,136.5,136.49,102.362739]
[1719393478744,27.326,136.5,136.49,102.362739]
[1719393478946,20.0,136.5,136.49,102.362739]
[1719393479352,27.326,136.5,136.49,102.362739]
[1719393482841,20.0,136.5,136.49,102.362739]
[1719393483041,27.326,136.5,136.49,102.362739]
[1719393485353,7.3247,136.53,136.49,117.760939]
[1719393485656,301.5072,136.6,136.5,6.0465]
[1719393485860,7.3254,136.51,136.5,6.0465]
[1719393486052,7.325,136.52,136.5,6.0465]
[1719393486371,18.3051,136.58,136.5,6.0465]
[1719393486573,7.3237,136.55,136.5,13.3724]
[1719393487071,18.3051,136.58,136.5,13.07547384]
[1719393487367,18.3051,136.58,136.5,6.0465]
[1719393487368,7.3239,136.54,136.5,6.0465]
[1719393487974,7.3249,136.52,136.5,6.0465]
[1719393488148,18.3071,136.56,136.49,117.760939]
[1719393488149,7.3254,136.51,136.49,117.760939]
[1719393488358,18.3071,136.56,136.49,117.760939]
[1719393488571,7.3249,136.52,136.49,117.760939]
[1719393489077,7.3245,136.53,136.49,117.760939]
[1719393489285,20.0,136.52,136.49,125.087339]
[1719393489571,32.3494547,136.59,136.5,7.3258]
[1719393489773,7.3236,136.55,136.5,7.3258]
[1719393489949,20.0,136.54,136.5,7.3258]
[1719393491484,7.3228,136.56,136.51,13.7561]
[1719393491767,258.6,136.6,136.51,6.4308]
[1719393491768,7.3249,136.52,136.51,6.4308]
[1719393491970,18.4758,136.57,136.51,6.4308]
[1719393492357,7.3248,136.53,136.51,6.4308]
[1719393492672,7.3245,136.53,136.51,6.4308]
[1719393492874,7.3232,136.56,136.51,13.7562]
[1719393493082,20.0,136.55,136.51,13.7562]
[1719393493756,7.3223,136.57,136.52,7.3248]
[1719393494073,20.0,136.56,136.53,3.29113444]
[1719393494371,20.0,136.56,136.53,4.75422762]
[1719393494571,20.0,136.56,136.53,12.07852762]
[1719393494778,20.0,136.57,136.53,12.07852762]
[1719393495278,20.0,136.57,136.53,4.75422762]
[1719393495481,7.3228,136.56,136.52,4.75430438]
[1719393495653,20.0,136.59,136.52,4.75430438]
[1719393495855,20.0,136.59,136.54,16.065]
[1719393496064,27.3216,136.59,136.55,4.75325986]
[1719393496365,27.3216,136.59,136.54,23.3888]
[1719393496754,7.3202,136.61,136.57,6.1626]
[1719393496971,18.2983,136.63,136.57,6.1626]
[1719393497174,7.60652739,136.65,136.57,6.1626]
[1719393497363,7.3197,136.62,136.59,15.7836]
[1719393497570,7.3192,136.63,136.59,15.7836]
[1719393498055,7.3185,136.64,136.59,23.1047]
[1719393498255,18.2945,136.66,136.59,15.7836]
[1719393498508,20.0,136.65,136.59,15.7836]
[1719393498983,7.319,136.63,136.59,15.7836]
[1719393499181,18.2945,136.66,136.59,15.7836]
[1719393499483,7.3203,136.61,136.59,15.7836]
[1719393500164,18.2992,136.62,136.57,6.1626]
[1719393500471,20.0,136.61,136.57,6.1626]
[1719393500668,18.4658,136.65,136.57,6.1626]
[1719393500978,7.3199,136.62,136.57,13.4844]
[1719393501280,7.3192,136.63,136.58,4.04145576]
[1719393502075,7.3192,136.63,136.58,11.36305576]
[1719393502468,20.0,136.64,136.6,7.3205]
[1719393502782,7.317,136.67,136.62,7.3193]
[1719393502975,27.317,136.67,136.63,6.2193]
[1719393503286,27.317,136.67,136.63,8.7943438]
[1719393503781,7.317,136.67,136.63,8.7943438]
[1719393503960,7.317,136.67,136.64,4.04145385]
[1719393504288,7.3164,136.68,136.63,17.60589552]
[1719393504466,7.3154,136.7,136.65,7.3179]
[1719393504673,7.3154,136.7,136.65,13.48151688]
[1719393505094,7.3154,136.7,136.65,6.16361688]
[1719393505477,7.3158,136.69,136.65,6.16361688]
[1719393505674,7.3153,136.7,136.65,10.92137377]
[1719393506001,7.3153,136.7,136.66,20.48672941]
[1719393506299,7.3158,136.69,136.66,15.4214]
[1719393506478,7.3168,136.67,136.66,15.4214]
[1719393506996,7.3154,136.7,136.66,15.4214]
[1719393507174,7.3159,136.69,136.66,15.4214]
[1719393508089,7.3163,136.68,136.66,15.4214]
[1719393509375,7.3178,136.66,136.63,6.2193]
[1719393509891,7.317,136.67,136.63,6.2193]
[1719393510094,18.2885,136.7,136.63,6.2193]
[1719393510404,7.3183,136.65,136.63,6.2193]
[1719393511083,7.319,136.63,136.62,15.8921]
[1719393511284,7.319,136.63,136.6,6.4074]
[1719393512203,7.3196,136.62,136.6,6.4074]
[1719393512416,7.3203,136.61,136.59,15.3398]
[1719393512584,7.3206,136.6,136.56,21.7472]
[1719393513004,45.0,136.68,136.56,6.4074]
[1719393513284,7.322,136.58,136.53,29.0715]
[1719393513592,7.3218,136.58,136.53,21.7472]
[1719393514307,7.3218,136.58,136.53,29.0715]
[1719393514800,7.3213,136.59,136.54,7.3236]
[1719393515317,7.3207,136.6,136.54,7.3236]
[1719393515499,20.0,136.59,136.54,7.3236]
[1719393516030,20.0,136.59,136.54,12.78653157]
[1719393516186,27.3212,136.59,136.54,12.78653157]
[1719393516393,27.3212,136.59,136.53,40.0576]
[1719393516394,7.3217,136.58,136.53,47.3818]
[1719393516823,27.3213,136.59,136.54,11.25303718]
[1719393517121,20.0,136.62,136.55,3.92934815]
[1719393517305,7.3209,136.6,136.55,7.3232]
[1719393517507,20.0,136.59,136.55,7.75101912]
[1719393518005,20.0,136.59,136.55,7.3232]
[1719393519019,20.0,136.59,136.56,8.73999018]
[1719393519201,20.0,136.59,136.55,25.631]
[1719393520017,27.3213,136.59,136.55,18.3078]
[1719393520219,27.3213,136.59,136.54,7.3237]
[1719393520524,20.0,136.59,136.55,9.81992729]
[1719393520901,7.3212,136.59,136.55,9.81992729]
[1719393521218,20.0,136.62,136.56,7.3227]
[1719393521219,7.3202,136.61,136.56,7.3227]
[1719393521426,20.0,136.6,136.56,7.3227]
[1719393521908,7.3212,136.59,136.54,25.6329]
[1719393522109,27.3208,136.6,136.55,9.92565906]
[1719393522417,7.322,136.58,136.54,18.3093]
[1719393522929,7.3213,136.59,136.54,28.33737582]
[1719393523090,20.0,136.6,136.54,18.3093]
[1719393523407,20.0,136.62,136.54,25.6329]
[1719393523626,7.3212,136.59,136.54,29.81157255]
[1719393523794,20.0,136.62,136.54,29.81157255]
[1719393523795,7.3217,136.58,136.54,29.81157255]
[1719393524793,7.3213,136.59,136.54,29.81157255]
[1719393524999,7.3217,136.58,136.54,22.48797255]
[1719393525300,7.3213,136.59,136.54,29.66755225]
[1719393525922,7.3207,136.6,136.55,11.35735678]
[1719393526222,27.3212,136.59,136.55,11.35735678]
[1719393526522,27.3212,136.59,136.54,18.3093]
[1719393526523,7.3212,136.59,136.54,29.75721379]
[1719393527025,7.3208,136.6,136.55,11.49039277]
[1719393527212,27.3212,136.59,136.55,4.16719277]
[1719393527522,7.3227,136.57,136.53,21.7472]
[1719393527723,18.3018,136.6,136.53,21.7472]
[1719393527899,7.3224,136.57,136.53,21.7472]
[1719393528096,20.0,136.59,136.53,21.7472]
[1719393528097,7.3228,136.56,136.53,21.7472]
[1719393528308,20.0,136.59,136.53,21.7472]
[1719393528518,0.17,136.58,136.53,21.7472]
[1719393528826,7.3233,136.55,136.53,15.3398]
[1719393528999,7.3238,136.54,136.53,15.3398]
[1719393529201,7.3234,136.55,136.53,15.3398]
[1719393529403,7.3229,136.56,136.53,15.3398]
[1719393530912,7.3224,136.57,136.53,15.3398]
[1719393531409,27.3228,136.56,136.53,15.3398]
[1719393533336,27.3228,136.56,136.5,6.1759]
[1719393533337,20.0,136.56,136.5,22.1887]
[1719393533504,7.3244,136.53,136.5,22.1887]
[1719393534612,7.3239,136.54,136.5,22.1887]
[1719393534806,20.0,136.53,136.5,22.1887]
[1719393535024,27.3244,136.53,136.5,22.1887]
[1719393535740,20.0,136.53,136.5,22.1887]
[1719393539424,27.3244,136.53,136.5,22.1887]
[1719393540640,20.0,136.53,136.5,22.1887]
[1719393540929,27.3245,136.53,136.5,22.1887]
[1719393541527,7.3245,136.53,136.5,22.1887]
[1719393542441,18.3076,136.56,136.5,16.0128]
[1719393542740,20.34,136.55,136.5,16.0128]
[1719393542942,7.3252,136.52,136.5,16.0128]
[1719393543142,20.34,136.55,136.49,102.362739]
[1719393543143,7.326,136.5,136.49,102.362739]
[1719393550331,27.326,136.5,136.49,102.362739]
[1719393553829,27.496,136.5,136.49,102.362739]
[1719393554234,27.666,136.5,136.49,102.362739]
[1719393555830,27.496,136.5,136.49,102.362739]
[1719393556042,27.326,136.5,136.49,102.362739]
[1719393561241,7.326,136.5,136.49,102.362739]
[1719393561740,18.3107,136.54,136.49,102.362739]
[1719393561741,7.3256,136.51,136.49,102.362739]
[1719393562462,7.3251,136.52,136.49,102.362739]
[1719393562838,7.326,136.5,136.49,102.362739]
[1719393564157,27.326,136.5,136.49,102.362739]
[1719393567377,27.496,136.5,136.49,102.362739]
[1719393567547,27.326,136.5,136.49,102.362739]
[1719393568653,20.0,136.5,136.49,102.362739]
[1719393568862,7.3255,136.51,136.49,102.362739]
[1719393569170,7.326,136.5,136.49,102.362739]
[1719393570450,27.496,136.5,136.49,53.11945559]
[1719393570762,27.666,136.5,136.49,24.95945559]
[1719393571066,34.54447931,136.5,136.49,21.04945559]
[1719393571266,34.54447931,136.5,136.49,12.55745912]
[1719393571572,79.54447931,136.5,136.49,7.92546265]
[1719393571870,7.3286,136.45,136.44,0.8495621]
[1719393572071,27.3286,136.45,136.44,0.8495621]
[1719393572249,27.3286,136.45,136.42,0.04343518]
[1719393572250,7.3297,136.43,136.42,0.04343518]
[1719393572451,20.34,136.43,136.42,0.04343518]
[1719393572867,20.34,136.43,136.42,3.518e-05]
[1719393573372,27.95458268,136.43,136.42,3.518e-05]
[1719393573757,35.28428268,136.43,136.42,3.518e-05]
[1719393573969,35.11428268,136.43,136.42,3.518e-05]
[1719393574277,27.6697,136.43,136.42,3.518e-05]
[1719393574876,27.4997,136.43,136.42,3.518e-05]
[1719393575063,14.93810416,136.45,136.42,3.518e-05]
[1719393575374,29.17397931,136.5,136.42,3.518e-05]
[1719393575375,7.3297,136.43,136.42,3.518e-05]
[1719393575874,27.3297,136.43,136.42,3.518e-05]
[1719393576368,27.4997,136.43,136.42,3.518e-05]
[1719393577183,27.6697,136.43,136.42,3.518e-05]
[1719393577354,27.4997,136.43,136.42,3.518e-05]
[1719393577555,7.60653635,136.46,136.42,3.518e-05]
[1719393577766,20.0,136.45,136.42,3.518e-05]
[1719393577960,7.3276,136.47,136.43,6.162]
[1719393578272,7.60218924,136.5,136.43,6.162]
[1719393578446,27.3268,136.49,136.44,33.59]
[1719393578646,7.3281,136.46,136.44,15.2681]
[1719393578869,7.3276,136.47,136.44,15.2681]
[1719393579073,7.3286,136.45,136.44,15.2681]
[1719393579367,7.3287,136.45,136.43,6.162]
[1719393579573,7.3292,136.44,136.42,3.518e-05]
[1719393579779,7.3286,136.45,136.42,3.518e-05]
[1719393579994,7.3281,136.46,136.42,3.518e-05]
[1719393580204,18.3174,136.49,136.42,3.518e-05]
[1719393580499,20.34,136.48,136.42,3.518e-05]
[1719393580703,7.3297,136.43,136.42,3.518e-05]
[1719393581298,27.3297,136.43,136.42,3.518e-05]
[1719393582372,27.4997,136.43,136.42,3.518e-05]
[1719393583111,27.3297,136.43,136.42,3.518e-05]
[1719393583627,27.6697,136.43,136.42,3.518e-05]
[1719393585394,27.4997,136.43,136.42,3.518e-05]
[1719393585594,27.3297,136.43,136.42,3.518e-05]
[1719393585977,7.3285,136.46,136.42,3.518e-05]
[1719393586180,20.0,136.45,136.42,3.518e-05]
[1719393586377,7.3278,136.47,136.42,3.518e-05]
[1719393587399,7.3278,136.47,136.42,7.33023518]
[1719393587572,659.9127,136.52,136.43,13.9045]
[1719393587776,27.3255,136.51,136.45,7.3286]
[1719393588684,20.0,136.51,136.46,7.3277]
[1719393588887,7.3255,136.51,136.45,7.3285]
[1719393589094,20.0,136.54,136.45,7.3285]
[1719393589095,7.3261,136.5,136.45,7.3285]
[1719393589296,7.3265,136.49,136.44,41.8016]
[1719393589503,7.3271,136.48,136.44,34.4724]
[1719393590180,7.3266,136.49,136.44,34.4724]
[1719393590688,7.3271,136.48,136.44,16.1504]
[1719393591784,7.3266,136.49,136.44,16.1504]
[1719393592282,7.3266,136.49,136.44,23.4795]
[1719393592485,7.59866941,136.55,136.45,9.64232886]
[1719393592699,20.34,136.54,136.45,9.64232886]
[1719393593005,7.3259,136.51,136.45,11.10642854]
[1719393593187,20.0,136.5,136.45,11.10642854]
[1719393593511,27.3261,136.5,136.45,7.3281]
[1719393595412,27.3261,136.5,136.44,23.4794]
[1719393596309,7.3275,136.48,136.44,16.1504]
[1719393596612,7.3257,136.51,136.46,18.3202]
[1719393598018,7.3257,136.51,136.46,25.6479]
[1719393598319,7.3257,136.51,136.46,18.3202]